fUSD/lending_fUSD_20240629
["ID","MTS","AMOUNT","RATE_DAILY","PERIOD"]
[330656310,1719694242424,-500.0,0.00013698,3]
[330656312,1719694242433,-2712.73,0.00013698,3]
[330656314,1719694242442,-550.6,0.00013698,3]
[330656316,1719694242451,-2048.96,0.00013698,3]
[330656318,1719694242461,-758.57,0.00013698,3]
[330656320,1719694242470,-500.0,0.00013698,3]
[330656323,1719694242479,-510.61,0.00013698,3]
[330656324,1719694242489,-500.0,0.00013698,3]
[330656326,1719694242498,-500.0,0.00013698,3]
[330656328,1719694242507,-552.46,0.00013698,3]
[330656330,1719694242516,-1103.77,0.00013698,3]
[330656332,1719694242525,-773.04,0.00013698,3]
[330656334,1719694242534,-1295.53,0.00013698,3]
[330656337,1719694242544,-500.0,0.00013698,3]
[330656339,1719694242553,-881.06,0.00013698,3]
[330656341,1719694242563,-729.22,0.00013698,3]
[330656343,1719694242572,-3181.19,0.00013698,3]
[330656345,1719694242582,-1949.14,0.00013698,3]
[330656347,1719694242591,-500.0,0.00013698,3]
[330656349,1719694242600,-526.56,0.00013698,3]
[330656351,1719694242610,-500.0,0.00013698,3]
[330656353,1719694242619,-500.0,0.00013698,3]
[330656355,1719694242629,-1952.32,0.00013698,3]
[330656357,1719694242638,-500.0,0.00013698,3]
[330656359,1719694242647,-531.76,0.00013698,3]
[330656361,1719694242657,-500.0,0.00013698,3]
[330656363,1719694242665,-597.38,0.00013698,3]
[330656365,1719694242675,-533.56,0.00013698,3]
[330656366,1719694242684,-500.0,0.00013698,3]
[330656368,1719694242694,-599.17,0.00013698,3]
[330656371,1719694242703,-6369.69,0.00013698,3]
[330656373,1719694242713,-1643.2,0.00013698,3]
[330656375,1719694242722,-1738.24,0.00013698,3]
[330656377,1719694242731,-500.0,0.00013698,3]
[330656379,1719694242740,-500.0,0.00013698,3]
[330656381,1719694242751,-500.0,0.00013698,3]
[330656383,1719694242760,-500.0,0.00013698,3]
[330656384,1719694242769,-500.0,0.00013698,3]
[330656387,1719694242779,-1759.93,0.00013698,3]
[330656389,1719694242788,-1041.09,0.00013698,3]
[330656391,1719694242797,-4890.59,0.00013698,3]
[330656393,1719694242807,-1959.85,0.00013698,3]
[330656394,1719694242816,-500.0,0.00013698,3]
[330656396,1719694242825,-3825.41,0.00013698,3]
[330656398,1719694242834,-1303.71,0.00013698,3]
[330656401,1719694242843,-500.0,0.00013698,3]
[330656403,1719694242853,-585.61,0.00013698,3]
[330656405,1719694242862,-500.0,0.00013698,3]
[330656407,1719694242872,-500.0,0.00013698,3]
[330656409,1719694242884,-610.01,0.00013698,3]
[330656411,1719694242892,-960.65,0.00013698,3]
[330656413,1719694242902,-500.0,0.00013698,3]
[330656414,1719694242912,-1131.01,0.00013698,3]
[330656417,1719694242921,-500.0,0.00013698,3]
[330656419,1719694242931,-500.0,0.00013698,3]
[330656420,1719694242940,-660.2,0.00013698,3]
[330656422,1719694242949,-500.0,0.00013698,3]
[330656424,1719694242957,-670.35,0.00013698,3]
[330656426,1719694242966,-500.0,0.00013698,3]
[330656428,1719694242976,-500.0,0.00013698,3]
[330656429,1719694242986,-1080.0,0.00013698,3]
[330656430,1719694242995,-10370.27,0.00013698,3]
[330656431,1719694243005,-500.0,0.00013698,3]
[330656432,1719694243016,-500.0,0.00013698,3]
[330656434,1719694243026,-6423.79,0.00013698,3]
[330656437,1719694243034,-1948.11,0.00013698,3]
[330656439,1719694243043,-500.0,0.00013698,3]
[330656441,1719694243052,-1370.17,0.00013698,3]
[330656446,1719694243062,-775.77,0.00013698,3]
[330656450,1719694243071,-500.0,0.00013698,3]
[330656453,1719694243080,-500.0,0.00013698,3]
[330656456,1719694243089,-500.0,0.00013698,3]
[330656459,1719694243098,-500.0,0.00013698,3]
[330656462,1719694243112,-910.94,0.00013698,3]
[330656465,1719694243122,-500.0,0.00013698,3]
[330656468,1719694243131,-500.0,0.00013698,3]
[330656471,1719694243140,-1469.16,0.00013698,3]
[330656473,1719694243150,-7929.21,0.00013698,3]
[330656476,1719694243160,-1203.37,0.00013698,3]
[330656479,1719694243168,-500.0,0.00013698,3]
[330656481,1719694243177,-500.0,0.00013698,3]
[330656483,1719694243188,-1910.93,0.00013698,3]
[330656485,1719694243199,-933.07,0.00013698,3]
[330656487,1719694243208,-500.0,0.00013698,3]
[330656490,1719694243218,-1777.8,0.00013698,3]
[330656493,1719694243227,-1731.4,0.00013698,3]
[330656496,1719694243236,-500.0,0.00013698,3]
[330656499,1719694243245,-250.07350581,0.00013698,3]
[330656503,1719694243255,-500.0,0.00013698,3]
[330656508,1719694243264,-775.86,0.00013698,3]
[330656512,1719694243273,-500.0,0.00013698,3]
[330656516,1719694243282,-500.0,0.00013698,3]
[330656519,1719694243291,-827.24,0.00013698,3]
[330656522,1719694243300,-689.86,0.00013698,3]
[330656526,1719694243310,-2660.52,0.00013698,3]
[330656529,1719694243319,-500.0,0.00013698,3]
[330656532,1719694243329,-990.74,0.00013698,3]
[330656535,1719694243338,-1841.11,0.00013698,3]
[330656538,1719694243347,-2500.0,0.00013698,3]
[330656541,1719694243356,-500.0,0.00013698,3]
[330656544,1719694243365,-651.51,0.00013698,3]
[330656546,1719694243376,-2773.97,0.00013698,3]
[330656548,1719694243385,-500.0,0.00013698,3]
[330656551,1719694243394,-500.0,0.00013698,3]
[330656553,1719694243403,-2056.69,0.00013698,3]
[330656555,1719694243412,-1253.79,0.00013698,3]
[330656557,1719694243422,-2485.96,0.00013698,3]
[330656559,1719694243431,-379.54339704,0.00013698,3]
[330656561,1719694243440,-1463.39,0.00013698,3]
[330656563,1719694243449,-500.0,0.00013698,3]
[330656565,1719694243458,-1033.86,0.00013698,3]
[330656567,1719694243469,-1626.55,0.00013698,3]
[330656569,1719694243479,-500.0,0.00013698,3]
[330656571,1719694243487,-3242.79,0.00013698,3]
[330656573,1719694243497,-1936.66,0.00013698,3]
[330656575,1719694243507,-6921.77,0.00013698,3]
[330656577,1719694243516,-453.04119418,0.00013698,3]
[330656579,1719694243525,-500.0,0.00013698,3]
[330656581,1719694243535,-500.0,0.00013698,3]
[330656583,1719694243543,-1221.17,0.00013698,3]
[330656585,1719694243553,-500.0,0.00013698,3]
[330656587,1719694243561,-783.62,0.00013698,3]
[330656589,1719694243570,-500.0,0.00013698,3]
[330656591,1719694243579,-1400.26,0.00013698,3]
[330656593,1719694243588,-500.0,0.00013698,3]
[330656595,1719694243597,-941.31,0.00013698,3]
[330656597,1719694243606,-1047.1,0.00013698,3]
[330656599,1719694243615,-823.09,0.00013698,3]
[330656601,1719694243624,-876.04,0.00013698,3]
[330656603,1719694243633,-500.0,0.00013698,3]
[330656605,1719694243642,-3491.86,0.00013698,3]
[330656607,1719694243651,-526.23,0.00013698,3]
[330656609,1719694243660,-849.65,0.00013698,3]
[330656611,1719694243669,-500.0,0.00013698,3]
[330656613,1719694243679,-2896.75,0.00013698,3]
[330656615,1719694243689,-151.998256,0.00013698,2]
[330656617,1719694243698,-1314.36,0.00013698,3]
[330656619,1719694243707,-500.0,0.00013698,3]
[330656621,1719694243716,-500.0,0.00013698,3]
[330656623,1719694243725,-4556.57,0.00013698,3]
[330656625,1719694243735,-1369.88,0.00013698,3]
[330656627,1719694243744,-500.0,0.00013698,3]
[330656629,1719694243753,-354.74428176,0.00013698,3]
[330656725,1719694244634,-330.11571824,0.00013698,3]
[330656728,1719694244644,-1507.85,0.00013698,3]
[330656730,1719694244653,-1001.44,0.00013698,3]
[330656731,1719694244662,-500.0,0.00013698,3]
[330656732,1719694244673,-500.0,0.00013698,3]
[330656733,1719694244682,-500.0,0.00013698,3]
[330656734,1719694244691,-585.77,0.00013698,3]
[330656735,1719694244699,-500.0,0.00013698,3]
[330656736,1719694244708,-4820.44,0.00013698,3]
[330656737,1719694244717,-500.0,0.00013698,3]
[330656738,1719694244726,-1277.49,0.00013698,3]
[330656739,1719694244734,-1022.34,0.00013698,3]
[330656740,1719694244743,-1610.28373654,0.00013698,3]
[330656742,1719694244758,-688.35,0.00013698,3]
[330656786,1719694245171,-757.07626346,0.00013698,3]
[330656788,1719694245182,-500.0,0.00013698,3]
[330656790,1719694245192,-508.42373654,0.00013698,3]
[330656804,1719694245320,-1503.99626346,0.00013698,3]
[330656806,1719694245329,-500.0,0.00013698,3]
[330656808,1719694245338,-500.0,0.00013698,3]
[330656810,1719694245347,-500.0,0.00013698,3]
[330656812,1719694245356,-500.0,0.00013698,3]
[330656814,1719694245366,-500.0,0.00013698,3]
[330656816,1719694245377,-500.0,0.00013698,3]
[330656818,1719694245386,-500.0,0.00013698,3]
[330656820,1719694245395,-1739.15,0.00013698,3]
[330656822,1719694245404,-1557.31,0.00013698,3]
[330656824,1719694245413,-500.0,0.00013698,3]
[330656826,1719694245423,-874.37,0.00013698,3]
[330656828,1719694245432,-943.86,0.00013698,3]
[330656830,1719694245441,-500.0,0.00013698,3]
[330656832,1719694245451,-500.0,0.00013698,3]
[330656834,1719694245460,-1363.13,0.00013698,3]
[330656836,1719694245469,-500.0,0.00013698,3]
[330656838,1719694245478,-1121.12,0.00013698,3]
[330656840,1719694245487,-1355.87,0.00013698,3]
[330656842,1719694245497,-939.63,0.00013698,3]
[330656844,1719694245507,-500.0,0.00013698,3]
[330656846,1719694245516,-500.0,0.00013698,3]
[330656848,1719694245525,-319.4494104,0.00013698,3]
[330656850,1719694245535,-1161.93734,0.00013698,2]
[330656852,1719694245544,-3923.16,0.00013698,3]
[330656854,1719694245553,-1402.7,0.00013698,3]
[330656856,1719694245563,-2435.81,0.00013698,3]
[330656858,1719694245571,-640.71,0.00013698,3]
[330656860,1719694245580,-500.0,0.00013698,3]
[330656862,1719694245589,-500.0,0.00013698,3]
[330656864,1719694245599,-2716.58,0.00013698,3]
[330656866,1719694245608,-500.0,0.00013698,3]
[330656868,1719694245617,-826.63,0.00013698,3]
[330656870,1719694245627,-500.0,0.00013698,3]
[330656872,1719694245636,-1596.21,0.00013698,3]
[330656874,1719694245645,-500.0,0.00013698,3]
[330656876,1719694245654,-1289.26,0.00013698,3]
[330656878,1719694245663,-500.0,0.00013698,3]
[330656880,1719694245673,-250.0,0.00013698,3]
[330656882,1719694245683,-540.21,0.00013698,3]
[330656885,1719694245692,-500.0,0.00013698,3]
[330656886,1719694245701,-2462.65,0.00013698,3]
[330656888,1719694245710,-5718.57,0.00013698,3]
[330656890,1719694245719,-500.0,0.00013698,3]
[330656893,1719694245729,-500.0,0.00013698,3]
[330656894,1719694245738,-500.0,0.00013698,3]
[330656896,1719694245748,-949.77,0.00013698,3]
[330656898,1719694245757,-1681.13,0.00013698,3]
[330656900,1719694245767,-500.0,0.00013698,3]
[330656902,1719694245776,-1013.15,0.00013698,3]
[330656905,1719694245785,-1127.42,0.00013698,3]
[330656907,1719694245795,-2298.19,0.00013698,3]
[330656909,1719694245803,-500.0,0.00013698,3]
[330656911,1719694245812,-684.67,0.00013698,3]
[330656913,1719694245821,-500.0,0.00013698,2]
[330656914,1719694245831,-500.0,0.00013698,2]
[330656916,1719694245840,-500.0,0.00013698,3]
[330656917,1719694245849,-500.0,0.00013698,3]
[330656918,1719694245858,-1398.4,0.00013698,3]
[330656919,1719694245867,-500.0,0.00013698,3]
[330656920,1719694245878,-5959.22,0.00013698,3]
[330656921,1719694245887,-500.0,0.00013698,3]
[330656922,1719694245897,-2162.31,0.00013698,3]
[330656923,1719694245906,-500.0,0.00013698,3]
[330656924,1719694245916,-500.0,0.00013698,2]
[330656925,1719694245925,-4484.33,0.00013698,3]
[330656926,1719694245935,-500.0,0.00013698,3]
[330656927,1719694245944,-509.62,0.00013698,3]
[330656928,1719694245952,-3030.36,0.00013698,3]
[330656929,1719694245962,-500.0,0.00013698,3]
[330656930,1719694245971,-2358.57,0.00013698,3]
[330656931,1719694245981,-1794.79,0.00013698,3]
[330656932,1719694245990,-500.0,0.00013698,3]
[330656933,1719694245999,-1952.52,0.00013698,3]
[330656934,1719694246009,-3401.01,0.00013698,3]
[330656935,1719694246019,-784.33,0.00013698,3]
[330656936,1719694246028,-500.0,0.00013698,3]
[330656937,1719694246037,-1285.83,0.00013698,3]
[330656938,1719694246046,-500.0,0.00013698,3]
[330656939,1719694246056,-500.0,0.00013698,3]
[330656940,1719694246065,-500.0,0.00013698,3]
[330656941,1719694246075,-1124.88,0.00013698,3]
[330656942,1719694246083,-500.0,0.00013698,3]
[330656943,1719694246092,-3279.01,0.00013698,3]
[330656944,1719694246103,-500.0,0.00013698,3]
[330656945,1719694246115,-500.0,0.00013698,3]
[330656946,1719694246127,-1295.53,0.00013698,3]
[330656947,1719694246135,-2077.72,0.00013698,3]
[330656948,1719694246144,-603.22,0.00013698,3]
[330656949,1719694246154,-1070.01,0.00013698,3]
[330656950,1719694246163,-500.0,0.00013698,3]
[330656951,1719694246172,-912.54,0.00013698,3]
[330656952,1719694246182,-4462.83,0.00013698,3]
[330656953,1719694246192,-1943.28,0.00013698,3]
[330656954,1719694246202,-500.0,0.00013698,3]
[330656955,1719694246211,-600.56,0.00013698,3]
[330656956,1719694246220,-500.0,0.00013698,3]
[330656957,1719694246229,-824.91,0.00013698,3]
[330656958,1719694246238,-1216.96,0.00013698,3]
[330656959,1719694246248,-500.0,0.00013698,3]
[330656960,1719694246258,-500.0,0.00013698,3]
[330656962,1719694246267,-1365.54018169,0.00013698,3]
[330656965,1719694246282,-564.56499991,0.00013698,3]
[330656973,1719694246592,-412.1753019,0.00013698,2]
[330656976,1719694246603,-202.8246981,0.00013698,2]
[330656978,1719694246613,-93.30973525,0.00013698,3]
[330656980,1719694246625,-866.09290291,0.00013698,3]
[330656982,1719694246636,-4140.39218024,0.00013698,3]
[330656984,1719694246648,-1663.39,0.00013698,3]
[330656985,1719694246657,-706.03,0.00013698,3]
[330656987,1719694246667,-590.01,0.00013698,3]
[330656989,1719694246676,-860.09,0.00013698,3]
[330656991,1719694246685,-2834.7,0.00013698,3]
[330656993,1719694246694,-500.0,0.00013698,3]
[330656995,1719694246703,-500.0,0.00013698,3]
[330656997,1719694246713,-500.0,0.00013698,3]
[330656999,1719694246722,-739.83,0.00013698,3]
[330657001,1719694246732,-1349.7,0.00013698,3]
[330657003,1719694246741,-1029.87,0.00013698,3]
[330657005,1719694246750,-751.08,0.00013698,3]
[330657007,1719694246760,-791.41,0.00013698,3]
[330657009,1719694246769,-1742.03,0.00013698,3]
[330657011,1719694246779,-500.0,0.00013698,3]
[330657013,1719694246788,-500.0,0.00013698,3]
[330657014,1719694246798,-6051.12,0.00013698,3]
[330657016,1719694246807,-1697.16,0.00013698,3]
[330657018,1719694246817,-500.0,0.00013698,3]
[330657020,1719694246826,-151.0,0.00013698,2]
[330657022,1719694246835,-151.0,0.00013698,2]
[330657025,1719694246845,-151.0,0.00013698,2]
[330657028,1719694246854,-151.0,0.00013698,2]
[330657030,1719694246863,-500.0,0.00013698,3]
[330657032,1719694246872,-1619.95,0.00013698,3]
[330657033,1719694246883,-1220.78,0.00013698,3]
[330657034,1719694246892,-613.58,0.00013698,3]
[330657035,1719694246902,-500.0,0.00013698,3]
[330657036,1719694246911,-1339.57,0.00013698,3]
[330657037,1719694246921,-1665.34,0.00013698,3]
[330657038,1719694246930,-1166.05,0.00013698,3]
[330657039,1719694246939,-686.19,0.00013698,3]
[330657040,1719694246948,-551.06,0.00013698,3]
[330657041,1719694246957,-1464.52,0.00013698,3]
[330657042,1719694246967,-200.32925612,0.00013698,3]
[330657043,1719694246984,-299.67074388,0.00013698,3]
[330657044,1719694246994,-593.63,0.00013698,3]
[330657045,1719694247003,-500.0,0.00013698,3]
[330657046,1719694247013,-500.0,0.00013698,3]
[330657047,1719694247022,-356.88359952,0.00013698,3]
[330657048,1719694247033,-143.11640048,0.00013698,3]
[330657049,1719694247043,-452.68860152,0.00013698,3]
[330657050,1719694247055,-966.98139848,0.00013698,3]
[330657051,1719694247064,-2266.15,0.00013698,3]
[330657052,1719694247074,-500.0,0.00013698,3]
[330657053,1719694247083,-500.0,0.00013698,3]
[330657054,1719694247092,-1771.72,0.00013698,3]
[330657055,1719694247102,-500.0,0.00013698,3]
[330657056,1719694247116,-1448.78,0.00013698,3]
[330657057,1719694247126,-897.24540282,0.00013698,3]
[330657058,1719694247139,-2296.41247343,0.00013698,3]
[330657059,1719694247150,-605.70812265,0.00013698,3]
[330657060,1719694247162,-1098.83817205,0.00013698,3]
[330657061,1719694247179,-4046.31582905,0.00013698,3]
[330657062,1719694247190,-2778.04,0.00013698,3]
[330657064,1719694247199,-2853.34,0.00013698,3]
[330657065,1719694247210,-500.0,0.00013698,3]
[330657066,1719694247219,-500.0,0.00013698,3]
[330657067,1719694247228,-2379.59,0.00013698,3]
[330657068,1719694247237,-502.39510163,0.00013698,3]
[330657069,1719694247247,-500.0,0.00013698,3]
[330657070,1719694247256,-1476.06,0.00013698,3]
[330657071,1719694247266,-500.0,0.00013698,3]
[330657072,1719694247275,-684.32,0.00013698,3]
[330657074,1719694247284,-500.0,0.00013698,3]
[330657076,1719694247294,-500.0,0.00013698,3]
[330657078,1719694247303,-1505.8,0.00013698,3]
[330657080,1719694247312,-1367.19,0.00013698,3]
[330657082,1719694247321,-1370.82,0.00013698,3]
[330657084,1719694247331,-681.05,0.00013698,3]
[330657086,1719694247340,-1283.69,0.00013698,3]
[330657088,1719694247351,-500.0,0.00013698,3]
[330657090,1719694247360,-500.0,0.00013698,3]
[330657092,1719694247369,-1035.45,0.00013698,3]
[330657094,1719694247379,-500.0,0.00013698,3]
[330657096,1719694247389,-500.0,0.00013698,3]
[330657098,1719694247398,-500.0,0.00013698,3]
[330657100,1719694247407,-1054.85,0.00013698,3]
[330657102,1719694247417,-1305.73,0.00013698,3]
[330657104,1719694247426,-1480.67,0.00013698,3]
[330657106,1719694247435,-7297.78,0.00013698,3]
[330657108,1719694247444,-500.0,0.00013698,3]
[330657110,1719694247453,-848.2,0.00013698,3]
[330657112,1719694247462,-1194.26,0.00013698,3]
[330657114,1719694247471,-500.0,0.00013698,3]
[330657115,1719694247481,-1579.83,0.00013698,3]
[330657117,1719694247490,-500.0,0.00013698,3]
[330657119,1719694247499,-3148.01,0.00013698,3]
[330657121,1719694247508,-500.0,0.00013698,3]
[330657123,1719694247517,-741.4,0.00013698,3]
[330657125,1719694247527,-2057.11,0.00013698,3]
[330657127,1719694247536,-500.0,0.00013698,3]
[330657129,1719694247545,-1046.5,0.00013698,3]
[330657131,1719694247555,-2299.96,0.00013698,3]
[330657133,1719694247564,-500.0,0.00013698,3]
[330657135,1719694247573,-6267.59,0.00013698,3]
[330657137,1719694247582,-989.99,0.00013698,3]
[330657139,1719694247591,-1877.52,0.00013698,3]
[330657141,1719694247600,-2313.39,0.00013698,3]
[330657143,1719694247610,-1571.35,0.00013698,3]
[330657145,1719694247619,-551.3,0.00013698,3]
[330657147,1719694247628,-490.85947123,0.00013698,3]
[330657149,1719694247637,-664.29,0.00013698,3]
[330657151,1719694247646,-516.45,0.00013698,3]
[330657153,1719694247656,-977.91,0.00013698,3]
[330657155,1719694247665,-500.0,0.00013698,3]
[330657157,1719694247674,-703.11,0.00013698,3]
[330657159,1719694247683,-964.19,0.00013698,3]
[330657160,1719694247692,-3222.07,0.00013698,3]
[330657162,1719694247700,-383.07815316,0.00013698,3]
[330657164,1719694247709,-500.0,0.00013698,3]
[330657166,1719694247718,-416.31800012,0.00013698,2]
[330657168,1719694247727,-6371.13,0.00013698,3]
[330657170,1719694247740,-500.0,0.00013698,3]
[330657171,1719694247749,-500.0,0.00013698,3]
[330657172,1719694247758,-2443.62,0.00013698,3]
[330657173,1719694247766,-1146.2,0.00013698,3]
[330657174,1719694247775,-1134.23,0.00013698,3]
[330657175,1719694247784,-1030.27,0.00013698,3]
[330657176,1719694247793,-500.0,0.00013698,3]
[330657177,1719694247802,-500.0,0.00013698,3]
[330657178,1719694247810,-500.0,0.00013698,3]
[330657179,1719694247819,-544.01,0.00013698,3]
[330657180,1719694247828,-500.0,0.00013698,3]
[330657181,1719694247837,-151.0,0.00013698,2]
[330657182,1719694247846,-151.0,0.00013698,2]
[330657184,1719694247856,-151.0,0.00013698,2]
[330657186,1719694247866,-151.0,0.00013698,2]
[330657188,1719694247876,-4152.86,0.00013698,3]
[330657190,1719694247885,-3902.11,0.00013698,3]
[330657211,1719694248169,-4314.53,0.00013698,3]
[330657212,1719694248180,-500.0,0.00013698,3]
[330657213,1719694248190,-2979.46,0.00013698,3]
[330657214,1719694248199,-200.0,0.00013699,2]
[330657215,1719694248209,-200.0,0.00013699,2]
[330657216,1719694248218,-200.0,0.00013699,2]
[330657217,1719694248227,-200.0,0.00013699,2]
[330657218,1719694248236,-172.13,0.00013699,2]
[330657219,1719694248246,-163.94,0.00013699,2]
[330657220,1719694248255,-151.0,0.00013699,2]
[330657221,1719694248265,-151.0,0.00013699,2]
[330657222,1719694248275,-151.0,0.00013699,2]
[330657223,1719694248284,-151.0,0.00013699,2]
[330657224,1719694248293,-500.0,0.00013699,2]
[330657225,1719694248303,-718.84,0.00013699,2]
[330657227,1719694248312,-20049.20537451,0.000137,2]
[330657228,1719694248322,-3500.0,0.000137,5]
[330657229,1719694248331,-211.14338904,0.00013708,2]
[330657230,1719694248340,-15850.36800793,0.00013708,2]
[330657231,1719694248350,-151.0,0.00013708,2]
[330657232,1719694248359,-13961.79532462,0.00013708,2]
[330657233,1719694248369,-1697.36548004,0.00013708,2]
[330657234,1719694248381,-150.0,0.00013719,2]
[330657235,1719694248390,-150.0,0.0001372,2]
[330657236,1719694248404,-150.0,0.00013722,2]
[330657237,1719694248413,-150.0,0.00013722,2]
[330657238,1719694248423,-150.0,0.00013723,2]
[330657239,1719694248432,-150.0,0.00013727,2]
[330657240,1719694248442,-150.0,0.00013731,2]
[330657241,1719694248451,-150.0,0.00013742,2]
[330657242,1719694248460,-150.0,0.00013743,2]
[330657243,1719694248469,-150.0,0.00013747,2]
[330657244,1719694248479,-150.0,0.00013756,2]
[330657245,1719694248489,-150.0,0.00013761,2]
[330657246,1719694248498,-227.77082062,0.00013765,2]
[330657247,1719694248507,-500.0,0.00013765,2]
[330657248,1719694248517,-1627.4490346,0.00013768,2]
[330657249,1719694248526,-3336.7693553,0.00013768,2]
[330657250,1719694248535,-6775.1198322,0.00013768,2]
[330657251,1719694248544,-3279.3755681,0.00013768,2]
[330657252,1719694248554,-151.0,0.00013768,2]
[330657253,1719694248563,-150.0,0.00013769,2]
[330657254,1719694248573,-32734.4906682,0.0001377,2]
[330657255,1719694248582,-151.0,0.0001377,2]
[330657256,1719694248592,-153.139188,0.0001377,2]
[330657257,1719694248601,-150.0,0.00013771,2]
[330657258,1719694248611,-196.45619563,0.00013777,2]
[330657259,1719694248620,-560.83776406,0.00013777,2]
[330657260,1719694248630,-500.0,0.00013777,2]
[330657261,1719694248639,-5376.0,0.00013778,3]
[330657262,1719694248649,-500.0,0.00013789,2]
[330657263,1719694248659,-15223.49479177,0.0001379,2]
[330657264,1719694248668,-15223.49479173,0.0001379,2]
[330657265,1719694248677,-15223.49479173,0.0001379,2]
[330657266,1719694248686,-166.49751087,0.00013798,2]
[330657267,1719694248695,-2232.86940585,0.00013799,2]
[330657268,1719694248704,-2232.86940579,0.00013799,2]
[330657269,1719694248713,-2232.86940579,0.00013799,2]
[330657270,1719694248723,-700.0,0.000138,5]
[330657271,1719694248732,-155.0,0.00013802,2]
[330657272,1719694248741,-157.39,0.00013807,2]
[330657273,1719694248750,-500.0,0.00013807,2]
[330657274,1719694248759,-176.70962475,0.00013807,2]
[330657275,1719694248769,-150.0,0.00013807,2]
[330657276,1719694248778,-628.3,0.00013808,3]
[330657277,1719694248787,-3332.01,0.00013808,3]
[330657278,1719694248796,-3729.37,0.00013808,3]
[330657279,1719694248805,-2161.75,0.00013808,3]
[330657280,1719694248815,-3675.92,0.00013808,3]
[330657281,1719694248824,-3174.07,0.00013808,3]
[330657282,1719694248833,-2982.72,0.00013808,3]
[330657283,1719694248843,-3156.31,0.00013808,3]
[330657284,1719694248852,-993.77,0.00013808,3]
[330657285,1719694248861,-1987.61,0.00013808,3]
[330657286,1719694248870,-6610.94,0.00013808,3]
[330657287,1719694248881,-2654.84,0.00013808,3]
[330657288,1719694248891,-3790.85,0.00013808,3]
[330657289,1719694248900,-2829.49,0.00013808,3]
[330657290,1719694248910,-1029.59,0.00013808,3]
[330657291,1719694248920,-4190.64,0.00013808,3]
[330657292,1719694248929,-3766.12,0.00013808,3]
[330657293,1719694248940,-1698.62,0.00013808,3]
[330657294,1719694248949,-1375.34,0.00013808,3]
[330657295,1719694248958,-3661.26,0.00013808,3]
[330657296,1719694248967,-500.0,0.00013808,3]
[330657297,1719694248976,-2623.71,0.00013808,3]
[330657298,1719694248985,-4024.34,0.00013808,3]
[330657299,1719694248994,-2836.25,0.00013808,3]
[330657300,1719694249003,-4792.65,0.00013808,3]
[330657301,1719694249012,-9360.35,0.00013808,3]
[330657302,1719694249021,-10223.07,0.00013808,3]
[330657303,1719694249031,-2903.51,0.00013808,3]
[330657304,1719694249040,-789.29,0.00013808,3]
[330657305,1719694249049,-4005.87,0.00013808,3]
[330657306,1719694249059,-634.53,0.00013808,3]
[330657307,1719694249068,-500.0,0.00013808,3]
[330657308,1719694249078,-500.0,0.00013808,3]
[330657309,1719694249087,-517.3,0.00013808,3]
[330657310,1719694249096,-500.0,0.00013808,3]
[330657311,1719694249110,-1325.22,0.00013808,3]
[330657312,1719694249119,-500.0,0.00013808,3]
[330657313,1719694249128,-500.0,0.00013808,3]